Cogmind - Beta 15 @@@ ROGUE MODE // 2025.09.21 @ 22:27:50 Player: Giraffe Result: Core destroyed Performance ------------- Evolutions (5) 2500 Regions Visited (7) 1400 Robots Destroyed (72) 360 Value Destroyed (2650) 2650 Prototype IDs (9) 180 Alien Tech Used (0) 0 Bonus (500) 500 TOTAL SCORE: 7590 Bonus ------- Entered DSFs 500 Cogmind --------- Core Integrity 0/1000 Matter 258/300 Energy 223/315 System Corruption 3% Temperature Critical (590) Movement Hovering (105) Ox1 Location -5/Factory Parts ------- > --- POWER (4) -------- Fusion Compressor Fusion Compressor Fusion Compressor Neutrino Core > --- PROPULSION (5) --- Gravmag System Gravmag System Gravmag System Gravmag Array > --- UTILITY (4) ------ Advanced Cooling System Large Storage Unit Improved Sensor Array Armor Integrity Analyzer > --- WEAPON (4) ------- Tesla Rifle Wave Gun Heavy Particle Cannon Heavy Phase Cannon > --- INVENTORY (15) --- Carbon-fiber Leg Power Amplifier Improved Cooling System Improved Signal Interpreter Improved Target Analyzer Particle Charger Kinecellerator Advanced ECM Suite Reaction Control System Improved Power Shielding Improved Focal Shield Authchip [Propulsion] Dynamic Insulation System Mini Drone Bay (3/3) Thermic Laser Peak State ------------ > --- POWER ------------ Fusion Compressor Fusion Compressor Neutrino Core Neutrino Core > --- PROPULSION ------- Gravmag System Gravmag System Gravmag System Gravmag Array > --- UTILITY ---------- Advanced Cooling System Large Storage Unit Improved Sensor Array Armor Integrity Analyzer > --- WEAPON ----------- Tesla Rifle Wave Gun Heavy Particle Cannon Heavy Phase Cannon > --- INVENTORY -------- Carbon-fiber Leg Power Amplifier Improved Cooling System Improved Signal Interpreter Improved Target Analyzer Particle Charger Kinecellerator Advanced ECM Suite Reaction Control System Improved Power Shielding Improved Focal Shield Authchip [Propulsion] Dynamic Insulation System Mini Drone Bay Thermic Laser [Rating: 85] Favorites ----------- Power Improved Ion Engine Engine Improved Ion Engine Power Core Neutrino Core Propulsion Improved Aluminum Leg Treads Light Treads Leg Improved Aluminum Leg Hover Unit Gravmag System Flight Unit Nuclear Pulse Array Utility Particle Charger Device Particle Charger Storage Large Storage Unit Processor Signal Interpreter Protection Light Armor Plating Weapon Advanced Beam Cannon Energy Gun Heavy EM Shotgun Energy Cannon Advanced Beam Cannon Ballistic Gun Enhanced Autogun Ballistic Cannon Light Cannon Launcher Advanced EMP Blaster Special Weapon Plasma Cutter Build | -11 -10 -9 -8 -7 -6 -6 -5 ------- Run | Yrd Mat Mat Mat Fac Fac DSF Fac Slots Evolved 10 | . . 2 2 2 2 . 2 Power 3 | . . 1 . . 2 . . Propulsion 3 | . . . 1 1 . . 1 Utility 2 | . . 1 . 1 . . . Weapon 2 | . . . 1 . . . 1 Parts Attached 107 | 5 10 24 9 12 2 21 24 Power 25 | 1 2 4 3 1 1 7 6 Engine 13 | 1 2 4 3 . 1 2 . Core 12 | . . . . 1 . 5 6 Reactor . | . . . . . . . . Propulsion 26 | 2 2 6 1 5 . 4 6 Treads 3 | . . 3 . . . . . Leg 17 | 2 2 3 1 5 . 3 1 Wheel . | . . . . . . . . Hover 5 | . . . . . . 1 4 Flight 1 | . . . . . . . 1 Utility 27 | . 3 8 2 4 1 3 6 Device 14 | . 3 3 1 2 . 1 4 Storage 2 | . . 1 . . 1 . . Processor 5 | . . 1 . 2 . . 2 Hackware . | . . . . . . . . Protection 6 | . . 3 1 . . 2 . Artifact . | . . . . . . . . Weapon 29 | 2 3 6 3 2 . 7 6 Energy Gun 11 | 2 2 1 1 2 . . 3 Energy Cannon 10 | . . 2 1 . . 4 3 Ballistic Gun 4 | . . 2 . . . 2 . Ballistic Cannon 2 | . 1 . . . . 1 . Launcher 1 | . . . 1 . . . . Special Weapon 1 | . . 1 . . . . . Impact Weapon . | . . . . . . . . Slashing Weapon . | . . . . . . . . Piercing Weapon . | . . . . . . . . Special Melee Weapon . | . . . . . . . . Unidentified Prototypes 7 | . . 2 2 1 . 1 1 Parts Lost 38 | . 2 1 10 . . 20 5 Power 13 | . 1 . 2 . . 7 3 Propulsion 8 | . . . 2 . . 5 1 Utility 6 | . . 1 3 . . 2 . Weapon 11 | . 1 . 3 . . 6 1 Highest Loss Streak 9 | . 2 1 9 . . 9 3 To Critical Strikes . | . . . . . . . . Average Backups 6 | 3 3 4 4 3 6 13 12 Power . | . . . . . . 1 . Propulsion 1 | 1 2 1 . 3 4 3 1 Utility 2 | . . . 2 . . 3 10 Weapon 1 | 1 1 2 1 . 1 4 . Tool/Special . | . . . . . . . . Unused Backups 20 | . 2 4 1 . . . 13 Power . | . . . . . . . . Propulsion 2 | . 2 . . . . . . Utility 15 | . . 2 1 . . . 12 Weapon 3 | . . 2 . . . . 1 Tool/Special . | . . . . . . . . Average Slot Usage (%) 93 | . 92 98 93 80 91 89 86 Engine 15 | . 13 21 17 7 11 9 2 Core 3 | . . . . . 6 12 13 Treads 2 | . . 4 . . . . . Leg 18 | . 28 17 24 25 26 22 2 Hover 2 | . . . . . . . 21 Device 16 | . 23 21 14 10 13 8 8 Storage 1 | . . . . . 2 6 5 Processor 5 | . . 4 9 14 9 6 4 Protection 4 | . . 6 2 . . 2 2 Energy Gun 4 | . 24 1 . 4 6 1 3 Energy Cannon 9 | . . 10 9 6 6 7 18 Ballistic Gun 2 | . . 1 8 7 6 5 . Ballistic Cannon 4 | . 1 8 . . . 2 . Peak Build Rating 85 | 5 12 20 29 43 50 65 85 Average Rating 28 | 3 9 17 24 32 47 55 70 On Entrance 22 | . 5 9 18 11 43 50 44 Naked Turns . | . . . . . . . . Heaviest Build 88 | 7 10 63 42 29 62 83 88 Greatest Support 80 | 20 26 40 43 80 80 80 70 Greatest Overweight (x) 7 | . . 1 1 1 . 2 7 Average Overweight (x) . | . . . . . . . 1 Largest Inventory Capacity 20 | 5 5 20 5 5 15 15 15 Average Capacity 7 | 5 5 5 5 5 9 15 15 Most Carried 15 | 5 5 9 5 5 10 15 15 Average Carried 6 | 2 4 4 4 3 6 13 13 Final Capacity 15 | 5 5 5 5 5 15 15 15 Final Carried 15 | 5 5 4 2 4 10 14 15 Class Distribution -------------------- 49% | Mutant 17% | Skirmisher 14% | Scavenger-Mutant 7% | Gunner 4% | Tank 3% | Generator-Skirmisher Dominant Class ---------------- Mutant | -10/Materials Mutant | -9/Materials Skirmisher | -8/Materials Skirmisher | -7/Factory Skirmisher | -6/Factory Generator-Skirmisher | -6/DSF Gunner | -5/Factory Resources | -11 -10 -9 -8 -7 -6 -6 -5 ----------- Run | Yrd Mat Mat Mat Fac Fac DSF Fac Matter Collected 1778 | 250 110 475 145 42 . 521 235 Remotely . | . . . . . . . . Salvage Created 2942 | 56 306 629 596 42 . 838 475 Parts 166 | 7 14 43 34 2 . 43 23 Haulers Intercepted 1 | . . . 1 . . . . Recyclers Shooed 3 | . . . 3 . . . . Parts Field Recycled . | . . . . . . . . Retrieved Matter . | . . . . . . . . Parts Self-Destructed . | . . . . . . . . Prevented . | . . . . . . . . Kills | -11 -10 -9 -8 -7 -6 -6 -5 ------- Run | Yrd Mat Mat Mat Fac Fac DSF Fac Combat Hostiles Destroyed 56 | 1 7 15 7 1 . 15 10 Guns 20 | 1 6 3 3 . . 7 . Cannons 29 | . 1 12 2 1 . 6 7 AOE 3 | . . . 2 . . . 1 Classes Destroyed 16 | 2 2 3 4 1 . 3 1 Worker 1 | . . . . . . . 1 Builder 2 | . . . 2 . . . . Tunneler 1 | 1 . . . . . . . Hauler 1 | . . . 1 . . . . Recycler 1 | . 1 . . . . . . Mechanic 1 | . . . 1 . . . . Operator 1 | . . . 1 . . . . Watcher 8 | . . 4 2 . . . 2 Swarmer 14 | . 3 4 . . . 2 5 Grunt 20 | 1 4 5 5 . . 4 1 Brawler 1 | . . . . . . 1 . Duelist 1 | . . 1 . . . . . Sentry 8 | . . 5 2 . . 1 . Specialist 6 | . . . . . . 6 . Programmer 5 | . . . . 1 . . 4 Heavy 1 | . . . . . . 1 . Best Kill Streak 5 | 2 4 4 5 1 . 5 5 Combat Bots Only 5 | 1 3 3 2 1 . 5 5 Max Kills in Single Turn 4 | 2 1 2 4 1 . 1 2 Gunslinging . | . . . . . . . . Exploded 2 | . . . 2 . . . 1 Melee . | . . . . . . . . Uniques/NPCs Destroyed . | . . . . . . . . Combat | -11 -10 -9 -8 -7 -6 -6 -5 -------- Run | Yrd Mat Mat Mat Fac Fac DSF Fac Hostile Shots Fired 634 | 8 57 67 128 8 . 308 58 Missed 214 | 2 13 19 45 1 . 121 13 Hits 420 | 6 44 48 83 7 . 187 45 Melee 1 | . . 1 . . . . . Projectile 419 | 6 44 47 83 7 . 187 45 Critical Strikes 9 | . . 2 3 1 . 2 1 Part Disruptions 2 | . . . . . . 2 . Damage Taken 7564 | 69 397 631 1297 104 . 3224 1842 Core 1862 | 12 98 174 208 . . 339 1031 Absorbed by Shields 33 | . . . . . . . 33 Redirected to Shielding 167 | . . 3 . . . 143 21 Regen/Repaired (Parts) 31 | . 31 . . . . . . Core Remaining (%) 71 | 95 56 56 62 100 . 60 . Volleys Fired 187 | 6 28 47 27 4 . 55 20 Largest 4 | 2 2 2 3 2 . 3 4 Hottest 320 | 90 96 118 119 93 . 187 320 Shots Fired 422 | 12 47 92 59 8 . 128 76 Gun 183 | 12 46 23 27 4 . 58 13 Cannon 231 | . 1 66 27 4 . 70 63 Launcher 5 | . . . 5 . . . . Special 3 | . . 3 . . . . . Kinetic 146 | . 1 45 24 4 . 72 . Thermal 238 | 6 42 37 27 4 . 54 68 Explosive . | . . . . . . . . Electromagnetic 38 | 6 4 10 8 . . 2 8 Robot Hit Streak 11 | 4 5 6 11 3 . 9 6 Robot Miss Streak 8 | 3 6 8 4 1 . 2 6 Penetration Max . | . . . . . . . . Secondary Targets 1 | . 1 . . . . . . Max Gunslinging Chain 1 | . 1 . . . . . . Shots Hit Robots 244 | 6 26 43 37 5 . 94 33 Core Hits 109 | 3 14 22 25 2 . 29 14 Critical Kills 2 | . . . . . . 1 1 Critical Parts Destroyed . | . . . . . . . . Critical Strikes 10 | . 3 4 . . . 2 1 Burn 2 | . 2 . . . . . . Meltdown 2 | . . . . . . 1 1 Blast 6 | . 1 4 . . . 1 . Melee Attacks . | . . . . . . . . Impact . | . . . . . . . . Slashing . | . . . . . . . . Piercing . | . . . . . . . . Sneak Attacks . | . . . . . . . . Combat Hostiles . | . . . . . . . . Follow-up Attacks . | . . . . . . . . Damage Inflicted 6103 | 93 337 865 1244 107 . 2122 1335 Guns 1928 | 93 315 144 312 55 . 863 146 Cannons 3532 | . 18 679 440 52 . 1259 1084 Explosions 597 | . . . 492 . . . 105 Melee . | . . . . . . . . Ramming 22 | . 4 18 . . . . . Kinetic 1857 | . 18 416 259 55 . 1109 . Thermal 3433 | 38 305 399 440 52 . 985 1214 Explosive . | . . . . . . . . Electromagnetic 791 | 55 10 32 545 . . 28 121 Impact . | . . . . . . . . Slashing . | . . . . . . . . Piercing . | . . . . . . . . Highest Corruption 2 | . . . . . . . 2 Average Corruption 1 | . . . . . . . 1 Corruption Purged . | . . . . . . . . Corruption Blocked . | . . . . . . . . Effects 4 | . . . . . . . 4 Message Errors 1 | . . . . . . . 1 Matter Fused 2 | . . . . . . . 2 Data Loss (minor) 1 | . . . . . . . 1 Overload Shots . | . . . . . . . . Overflow Damage 66 | . . 1 17 . . 24 24 Projectiles 49 | . . 1 . . . 24 24 Explosions 17 | . . . 17 . . . . Melee . | . . . . . . . . Knockbacks 6 | . . 1 . . . 5 . Impact . | . . . . . . . . Kinetic 6 | . . 1 . . . 5 . Secondary . | . . . . . . . . Self-Inflicted Damage 128 | . . . 20 . . . 108 Shots 3 | . . . 1 . . . 2 Rammed . | . . . . . . . . Targets Rammed 6 | . 3 3 . . . . . Kicked 6 | . 3 3 . . . . . Crushed . | . . . . . . . . Highest Temperature 782 | 198 378 526 355 88 . 442 782 Average Temperature 160 | 101 125 156 127 50 . 136 311 Received Heat Transfer 1464 | 36 102 189 765 . . 354 18 Effects 58 | . 3 9 1 . . 10 35 Shutdowns 26 | . . 7 . . . 6 13 Energy Bleed 4 | . . . . . . 2 2 Interference 11 | . 3 . . . . 2 6 Matter Decay 1 | . . . . . . . 1 Short Circuit 1 | . . . . . . . 1 Damage (minor) 2 | . . . 1 . . . 1 Damage (major) 7 | . . 2 . . . . 5 Damage (core) 6 | . . . . . . . 6 Siege Activations . | . . . . . . . . Martial Activations . | . . . . . . . . Shielding Activations . | . . . . . . . . Robots Disrupted . | . . . . . . . . Combat Hostiles . | . . . . . . . . Robots Corrupted . | . . . . . . . . Combat Hostiles . | . . . . . . . . Parts Fried 1 | . . . 1 . . . . Impact Corruptions . | . . . . . . . . Robots Melted 4 | . . . . . . 2 2 Combat Hostiles 4 | . . . . . . 2 2 Parts Melted 11 | . 1 . . . . 2 8 Heat Transferred 5432 | 111 929 666 703 74 . 1517 1432 Parts Sabotaged . | . . . . . . . . Parts Stolen . | . . . . . . . . Parts Stripped . | . . . . . . . . Power Chain Reactions 2 | . . . . . . . 2 Alert | -11 -10 -9 -8 -7 -6 -6 -5 ------- Run | Yrd Mat Mat Mat Fac Fac DSF Fac Maximum Alert Level 1 | . . . . . . 1 . Low Security (%) 99 | 100 100 100 100 100 100 93 100 Level 1 . | . . . . . . 6 . Level 2 . | . . . . . . . . Level 3 . | . . . . . . . . Level 4 . | . . . . . . . . Level 5 . | . . . . . . . . High Security . | . . . . . . . . Max Security . | . . . . . . . . Sterilizations 1 | . . . . . . 1 . Peak Influence 200 | 25 90 99 132 30 6 200 185 Initial 105 | . 3 5 38 3 6 3 105 Average 38 | 3 29 38 36 1 . 70 58 Influence Increases 1757 | 25 238 500 254 34 5 390 311 Destroy 0b10 Robot/C 1120 | 20 140 300 140 20 . 300 200 Destroy 0b10 Robot/NC 80 | 5 5 20 35 . . . 15 Destroy Leader 268 | . 30 88 46 10 . 60 34 Successful Hack 22 | . 3 10 . 4 5 . . Disable Machine 105 | . 15 45 15 . . . 30 Destroy Structure 42 | . . 7 3 . . . 32 Lose Combat Pursuer 120 | . 45 30 15 . . 30 . Influence Decreases 1697 | 20 229 423 337 28 14 195 451 Entered New Map 174 | . 2 9 53 5 8 2 95 Time Decay 1168 | 20 217 414 182 23 6 . 306 Lost Part 350 | . 10 . 97 . . 193 50 Purge Threat 5 | . . . 5 . . . . Squads Dispatched 14 | . 2 2 2 1 . 4 3 Investigation 2 | . 1 1 . . . . . Extermination 3 | . . . . 1 . . 2 Reinforcement 9 | . 1 1 2 . . 4 1 Assault . | . . . . . . . . Garrison . | . . . . . . . . Intercept . | . . . . . . . . Searches Triggered . | . . . . . . . . Construction Impeded 2 | . . . 2 . . . . Haulers Reinforced . | . . . . . . . . Active Scanning Responses . | . . . . . . . . Cargo Convoy Interrupts . | . . . . . . . . Stealth | -11 -10 -9 -8 -7 -6 -6 -5 --------- Run | Yrd Mat Mat Mat Fac Fac DSF Fac Distress Signals 6 | . . 2 4 . . . . Communications Jammed . | . . . . . . . . Distress Signals . | . . . . . . . . Times Spotted 99 | 1 17 21 20 1 . 25 14 Peak Tracking Total 7 | 1 5 4 7 1 . 7 5 Tactical Retreats 8 | . 2 2 1 . . 3 . Traps | -11 -10 -9 -8 -7 -6 -6 -5 ------- Run | Yrd Mat Mat Mat Fac Fac DSF Fac Traps Triggered 6 | . . 2 2 . . 2 . Indirectly 2 | . . . 2 . . . . Trap Hack Attempts . | . . . . . . . . Triggered . | . . . . . . . . Disarmed . | . . . . . . . . Reprogrammed . | . . . . . . . . Reused . | . . . . . . . . Traps Extracted . | . . . . . . . . Installed . | . . . . . . . . Triggered . | . . . . . . . . Machines | -11 -10 -9 -8 -7 -6 -6 -5 ---------- Run | Yrd Mat Mat Mat Fac Fac DSF Fac Machines Disabled 7 | . 1 3 1 . . . 2 Max in Single Turn 1 | . 1 1 1 . . . 1 Machines Repaired . | . . . . . . . . Machines Dismantled . | . . . . . . . . Machines Sabotaged . | . . . . . . . . Overloaded Fab Kills . | . . . . . . . . Hacking | -11 -10 -9 -8 -7 -6 -6 -5 --------- Run | Yrd Mat Mat Mat Fac Fac DSF Fac Machines Accessed 17 | . 3 7 4 1 1 . 1 Terminals 10 | . 1 5 2 1 1 . . Fabricators . | . . . . . . . . Repair Stations 1 | . 1 . . . . . . Recycling Units 5 | . 1 2 1 . . . 1 Scanalyzers 1 | . . . 1 . . . . Garrison Access . | . . . . . . . . Total Hacks 32 | . 5 14 5 2 3 . 3 Successful 25 | . 4 11 4 2 1 . 3 Failed 7 | . 1 3 1 . 2 . . Catastrophic . | . . . . . . . . Database Lockouts . | . . . . . . . . Manual . | . . . . . . . . Terminals 18 | . 1 10 2 2 3 . . Fabricators . | . . . . . . . . Repair Stations 3 | . 3 . . . . . . Recycling Units 9 | . 1 4 1 . . . 3 Scanalyzers 2 | . . . 2 . . . . Garrison Access . | . . . . . . . . Terminal Hacks 12 | . 1 7 1 2 1 . . Record 2 | . . 2 . . . . . Robot Analysis 1 | . . 1 . . . . . Prototype ID Bank 1 | . . 1 . . . . . Open DSF 1 | . . . . . 1 . . Emergency Access Points 1 | . . . . 1 . . . Alert Level 2 | . . 2 . . . . . Unreport Threat 1 | . . . 1 . . . . Locate Traps 2 | . . 1 . 1 . . . Dispatch Records 1 | . 1 . . . . . . Fabricator Hacks . | . . . . . . . . Repair Station Hacks 2 | . 2 . . . . . . Scan Component 1 | . 1 . . . . . . Repair 1 | . 1 . . . . . . Recycling Unit Hacks 9 | . 1 4 1 . . . 3 Process 2 | . . 1 . . . . 1 Report Inventory 6 | . 1 3 1 . . . 1 Retrieve Matter 1 | . . . . . . . 1 Scanalyzer 2 | . . . 2 . . . . Insert Component 1 | . . . 1 . . . . Analyze 1 | . . . 1 . . . . Garrison Access Hacks . | . . . . . . . . Unauthorized Hacks . | . . . . . . . . Terminals . | . . . . . . . . Fabricators . | . . . . . . . . Repair Stations . | . . . . . . . . Recycling Units . | . . . . . . . . Scanalyzers . | . . . . . . . . Garrison Access . | . . . . . . . . Data Cores Recovered 1 | . . . 1 . . . . Used . | . . . . . . . . Hacking Detections 13 | . 1 7 3 . 1 . 1 Full Trace Events 1 | . 1 . . . . . . Feedback Events . | . . . . . . . . Feedback Blocked . | . . . . . . . . Robot Schematics Acquired . | . . . . . . . . Robots Built . | . . . . . . . . Authchips . | . . . . . . . . Time . | . . . . . . . . Total Robot Build Rating . | . . . . . . . . Part Schematics Acquired 1 | . . . 1 . . . . Parts Built . | . . . . . . . . Authchips . | . . . . . . . . Time . | . . . . . . . . Total Part Build Rating . | . . . . . . . . Parts Repaired 1 | . 1 . . . . . . Time 26 | . 26 . . . . . . Parts Recycled . | . . . . . . . . Recycled Matter 454 | . . 249 . . . . 205 Retrieved Matter 245 | . . . . . . . 245 Retrieved Components . | . . . . . . . . Parts Scanalyzed 1 | . . . 1 . . . . Part Schematics Acquired 1 | . . . 1 . . . . Parts Damaged . | . . . . . . . . Bothacking | -11 -10 -9 -8 -7 -6 -6 -5 ------------ Run | Yrd Mat Mat Mat Fac Fac DSF Fac Used RIF Installer . | . . . . . . . . Robots Hacked . | . . . . . . . . Non-combat . | . . . . . . . . Combat . | . . . . . . . . Robot Hacks Applied . | . . . . . . . . Relay Couplers Released . | . . . . . . . . Fabnet Peak Effective % . | . . . . . . . . Robots Rewired . | . . . . . . . . Allies Hacked . | . . . . . . . . Hacks Repelled . | . . . . . . . . Allies | -11 -10 -9 -8 -7 -6 -6 -5 -------- Run | Yrd Mat Mat Mat Fac Fac DSF Fac Total Allies . | . . . . . . . . Largest Group . | . . . . . . . . Highest-Rated Group . | . . . . . . . . Highest-Rated Ally . | . . . . . . . . Initial Warlord ECA Mod 9 | . . . . . . . 9 Total Orders 2 | . . . . . . . 2 RETURN 2 | . . . . . . . 2 Ally Attacks . | . . . . . . . . Total Damage . | . . . . . . . . Kills . | . . . . . . . . Allies Corrupted . | . . . . . . . . Allies Melted . | . . . . . . . . Intel | -11 -10 -9 -8 -7 -6 -6 -5 ------- Run | Yrd Mat Mat Mat Fac Fac DSF Fac Active Infowar (turns) 5697 | . 512 2966 689 424 210 534 362 Optics 1206 | . . . . 416 210 478 102 Sensors 1978 | . . 447 654 204 210 227 236 Terrain 287 | . 287 . . . . . . Seismic 3030 | . 511 2519 . . . . . Machine Analysis 24 | . . . . . . . 24 ECM 880 | . . . 40 424 210 206 . Robot Analysis Total 1 | . . 1 . . . . . Derelict Logs Recovered . | . . . . . . . . Drone Launches 2 | . . . . . . . 2 Drone Recoveries 2 | . . . . . . . 2 Exploration | -11 -10 -9 -8 -7 -6 -6 -5 ------------- Run | Yrd Mat Mat Mat Fac Fac DSF Fac Turns Passed 6465 | 125 628 3044 689 424 210 534 811 Spaces Moved 3653 | 92 421 1535 385 280 151 203 586 Core 28 | 28 . . . . . . . Treads 355 | . . 355 . . . . . Legs 2680 | 64 421 1180 385 280 151 184 15 Wheels . | . . . . . . . . Hover 590 | . . . . . . 19 571 Flight . | . . . . . . . . Fastest Speed 50 | 50 120 120 123 125 130 116 105 Average Speed 149 | 98 120 180 132 137 130 161 115 Slowest Speed 510 | 120 120 240 195 190 130 270 510 Overloaded Moves . | . . . . . . . . Propulsion Burnouts . | . . . . . . . . Robots Hopped . | . . . . . . . . Potential Cave-ins . | . . . . . . . . Cave-ins Triggered . | . . . . . . . . Exploration Rate (%) 33 | 7 47 78 30 7 5 78 12 Regions Visited 7 Branch Regions . Pre-discovered Areas . | . . . . . . . . Known Exits Taken 4 | . . 1 1 1 1 . . Unknown Exits Taken 2 | 1 1 . . . . . . Scrap Searched . | . . . . . . . . Spaces Dug . | . . . . . . . . Terrain Destroyed 22 | . . 7 3 . . . 12 Melee . | . . . . . . . . Projectile 19 | . . 7 3 . . . 9 AOE 3 | . . . . . . . 3 Terrain Rammed . | . . . . . . . . Walls Destroyed . | . . . . . . . . Machines Disabled . | . . . . . . . . Actions | -11 -10 -9 -8 -7 -6 -6 -5 --------- Run | Yrd Mat Mat Mat Fac Fac DSF Fac Total 4288 | 114 496 1721 509 307 164 305 672 Wait 213 | 2 16 68 83 6 6 17 15 Move 3646 | 91 420 1534 384 279 150 202 586 Hop . | . . . . . . . . Pick Up 64 | 10 11 15 3 2 6 6 11 Fast Attach 30 | . . 4 2 7 1 8 8 Attach 35 | 5 5 3 4 2 . 7 9 Detach 7 | . . 3 . 1 . . 3 Swap 59 | . 6 23 4 4 1 9 12 Drop 41 | . 7 21 2 2 . 1 8 Fire 187 | 6 28 47 27 4 . 55 20 Melee . | . . . . . . . . Ram . | . . . . . . . . Kick 6 | . 3 3 . . . . . Crush . | . . . . . . . . Escape Stasis . | . . . . . . . . Rewire . | . . . . . . . . Trap . | . . . . . . . . Miscellaneous . | . . . . . . . . Route ------- -11/Scrapyard -10/Materials -9/Materials (discovered 3 exits: *Mat x2 / [*Min]) -8/Materials -7/Factory -6/Factory (discovered 2 exits: [*Low] / DSF) -6/DSF -5/Factory History --------- Turn | Location | Event 2 | -11/Scrapyard | Met Revision 17 75 | -11/Scrapyard | Discovered new exit (range 8) 126 | -11/Scrapyard | Entered Materials 305 | -10/Materials | Build established: Mutant 328 | -10/Materials | Repaired Med. Laser? 581 | -10/Materials | Discovered new exit (range 12) 754 | -10/Materials | Entered another Materials area 754 | -9/Materials | Evolved 2 slots: Power x1, Utility x1 1201 | -9/Materials | Build established: Scavenger-Mutant 1548 | -9/Materials | Discovered new exit (range 12) 2103 | -9/Materials | Build established: Mutant 2917 | -9/Materials | Discovered new exit (range 14) 3106 | -9/Materials | Identified exit to Materials 3762 | -9/Materials | Discovered exit to Materials (range 14) 3798 | -9/Materials | Entered another Materials area 3798 | -8/Materials | Evolved 2 slots: Propulsion x1, Weapon x1 4188 | -8/Materials | Build established: Skirmisher 4477 | -8/Materials | Discovered new exit (range 5) 4485 | -8/Materials | Identified exit to Factory 4487 | -8/Materials | Entered Factory 4487 | -7/Factory | Evolved 2 slots: Propulsion x1, Utility x1 4489 | -7/Factory | Lost 9 parts (2p2n2u3w) 4745 | -7/Factory | Discovered new exit (range 8) 4754 | -7/Factory | Identified exit to Factory 4911 | -7/Factory | Entered another Factory area 4911 | -6/Factory | Evolved 2 slots: Power x2 5058 | -6/Factory | Discovered new exit (range 7) 5121 | -6/Factory | Identified exit to DSF 5121 | -6/Factory | Entered DSF 5180 | -6/DSF | Additional patrols routed to DSF 5467 | -6/DSF | Lost 9 parts (5p1n2u1w) 5542 | -6/DSF | Sterilization system engaged 5562 | -6/DSF | Ambient heat levels rising (+10) 5577 | -6/DSF | Ambient heat levels rising (+10) 5592 | -6/DSF | Ambient heat levels rising (+10) 5607 | -6/DSF | Ambient heat levels rising (+10) 5622 | -6/DSF | Ambient heat levels rising (+10) 5629 | -6/DSF | Discovered new exit (range 14) 5635 | -6/DSF | Lost 7 parts (2p2n3w) 5637 | -6/DSF | Ambient heat levels rising (+10) 5652 | -6/DSF | Ambient heat levels rising (+10) 5655 | -6/DSF | Entered Factory 5655 | -5/Factory | Evolved 2 slots: Propulsion x1, Weapon x1 5968 | -5/Factory | Core integrity fell below 50% 6030 | -5/Factory | Lost 3 parts (2p1w) 6290 | -5/Factory | Build established: Gunner 6466 | -5/Factory | Core integrity fell below 20% 6467 | -5/Factory | Core destroyed Last Messages --------------- 06454_ R-10 Processor collects Wheel. 06455_ R-10 Processor collects Sml. Matter Pod. 06460_ R-10 Processor collects Wheel. 06463_ Power failure, Fusion Compressor shutdown. 06463_ W-25 Informer destroyed. 06466_ Overheating: Core damaged (-200). 06466_ System corrupted: Matter fused (-6). 06466_ Chain reaction triggered in Imp. Ion Engine. 06466_ P-70 Sage destroyed. 06467_ Power failure, Neutrino Core shutdown. 06467_ Overheating: Core damaged (-110). [Achievement: First Step to Greatness] [Achievement: 5k Club] Important note for Steam players: Cogmind player global achievement rates displayed by Steam are all significantly underreported, in some cases by a huge margin, due to how they are calculated by Valve. Map ----- +----------------------------------------------------+ | ?????????# # #??????????????# # | | ?????????# !# #??????????????# # | | ?????????# # #??????????????# # | | ?????????# """"%# #??????????????# # | | ?????????# """" # #??????????????# # | | ?????????# """" # #??????????????# # | | ?????????# "" """" + +??????????????# # | | ?????????# "Y% """" # #??????????????# + | | ?????????# "" """" # #??????????????# # | | ?????????# # #??????????????## ## | | ?????????############## ##??????????????# ## | | ?????????????????????#R #??????????????# ## | | ?????????????????????# #??????????????# ## | | ?????????????????????# #??????????????# ## | | ?????????????????????# #??????????????# #? | | ??????????????????##?# +??????????????# #? | | ????????######;####;##R #??????????????# #? | | ??????? #??????????????# #? | | ??????? #??????????????# #? | | ????????""""""" % [* ! #??????????????# ## | | ??????? ^ %%R ! ###??????????????# | | ????????""""""" |![= ! ##############???# | | ??????? % # = ##### | | ?????? ! # + | | ??????? ? u # #### | | ??????? ################ @ # """" """" #??# | | ???????????????????????# # """" """" #??# | | ???????????????????????# # """" """" #??# | | ???????????????????????# # """" """" #??# | | ???????????????????????# %# """" """" #??# | | ???????????????????????# + """" """" #??# | | ???????????????????????# # +?? | | ???????????????????????# # #??# | | ???????????????????????# # #??##### | | ???????????????????????# ###+##########??????? | | ???????????????????????# ##########?????? | | ???????????????????????# #?????? | | ???????????????????????# #?????? | | ???????????????????????# """ """ """ == ####### | | ???????????????????????# """ """ """ ! | | ????????" """ ######### """ """ """ ! ####### | | ??????? %% #?????? | | ??????? % % #?????? | | ??????? ##### #?????? | | ??????? #???# #?????? | | ??????? #???# #?????? | | ?????????####+### ###???# #######?????? | | ????????????????# #?????# #???????????? | | ????????????????# #?????# #???????????? | | ????????????????# #?????# #???????????? | +----------------------------------------------------+ Best States ------------- Heat Dissipation 71 Energy Generation 59 Energy Capacity 930 Matter Stores 300 Matter Capacity 300 Sight Range 20 Robot Scan Range 15 Terrain Scan Range 16 Terrain Scan Density 10 ECM Strength 1 Armor Coverage 225 Propulsion Shielding 66 Utility Shielding 90 Evasion (%) 55 Armor Integrity Analysis 30 Recoil Reduction 2 Particle Charging 15 Authchip Count 1 Item Schematics ----------------- ECM Suite | -8/Materials | Scanalyzed Robot Schematics ------------------ None Fabricated ------------ Nothing Repaired ---------- Med. Laser | 55% | -10/Materials Alien Tech Used ----------------- None Achievements -------------- 5k Club Crack Shot Everything Is Under Control First Step to Greatness It's Just You Loot Pinata Made in Tau Ceti IV Novice Programmer One Hack Too Far Oops Risk Taker Serviceable Loadout Storm Trooper Challenges ------------ None Game ------ Seed MappingGravityChainsword Manual? 0 Play Time 02:12:33 Cumulative 2.1 hours Start 2025.09.21 @ 19:59:02 End 2025.09.21 @ 22:27:50 Sessions 1 Manual Loads 0 Difficulty Rogue Special Mode None Game No. 2 Rogue 2 Adventurer 0 Explorer 0 Win Type - Total 0 Types 0/0/0/0/0/0/0/0/0/0 Lore% 0 Gallery% 6 Achievement% 5 Wizard Run 0 Options --------- Layout 1 ASCII 0 Keyboard 1 Movement Numpad Keybinds 0 Fullscreen 1 Font 24/Smallcaps Map View 50x35 Zoom Use 7% Tactical HUD 1 Map Filters NONE Filters NONE Steam 1 RUN: 9eb14a04-142c-4a05-8779-1f4ce57a1525